fUSD/lending_fUSD_20260701
["ID","MTS","AMOUNT","RATE_DAILY","PERIOD"]
[426817332,1782886244000,-889.11766215,0.00016438,2]
[426817305,1782886244000,-566.12526509,0.00016438,2]
[426817336,1782886244000,-889.11766215,0.00016438,2]
[426817364,1782886244000,-171.67,0.00016712,2]
[426817361,1782886244000,-1500.0,0.00016593,2]
[426817371,1782886244000,-1537.298697,0.00016922,2]
[426817381,1782886244000,-1500.0,0.00017141,2]
[426817382,1782886244000,-198.0,0.00017255,2]
[426817370,1782886244000,-500.0,0.00016889,2]
[426817372,1782886244000,-1537.298697,0.00016922,2]
[426817373,1782886244000,-1537.298697,0.00016922,2]
[426817374,1782886244000,-1537.298697,0.00016922,2]
[426817377,1782886244000,-151.0,0.00017,2]
[426817379,1782886244000,-167.41,0.00017016,2]
[426817376,1782886244000,-300.0,0.00017,2]
[426817378,1782886244000,-151.0,0.00017,2]
[426817380,1782886244000,-152.0,0.00017052,4]
[426817383,1782886244000,-151.0,0.00017329,2]
[426817391,1782886244000,-151.0,0.00017329,2]
[426817394,1782886244000,-248.81,0.00017332,2]
[426817384,1782886244000,-151.0,0.00017329,2]
[426817385,1782886244000,-573.97,0.00017329,2]
[426817387,1782886244000,-151.0,0.00017329,2]
[426817389,1782886244000,-151.0,0.00017329,2]
[426817390,1782886244000,-573.97,0.00017329,2]
[426817388,1782886244000,-151.67,0.00017329,2]
[426817386,1782886244000,-151.0,0.00017329,2]
[426817393,1782886244000,-151.83,0.00017329,2]
[426817392,1782886244000,-151.0,0.00017329,2]
[426817337,1782886244000,-889.11766215,0.00016438,2]
[426817359,1782886244000,-152.0,0.00016548,3]
[426817367,1782886244000,-151.0,0.00016714,2]
[426817375,1782886244000,-507.92,0.00016932,2]
[426817366,1782886244000,-151.0,0.00016714,2]
[426817335,1782886244000,-889.11766215,0.00016438,2]
[426817360,1782886244000,-500.0,0.00016585,2]
[426817338,1782886244000,-889.11766215,0.00016438,2]
[426817339,1782886244000,-889.11766215,0.00016438,2]
[426817341,1782886244000,-889.11766215,0.00016438,2]
[426817340,1782886244000,-889.11766215,0.00016438,2]
[426817342,1782886244000,-889.11766215,0.00016438,2]
[426817343,1782886244000,-869.85344613,0.00016438,2]
[426817344,1782886244000,-869.85344613,0.00016438,2]
[426817346,1782886244000,-869.85344613,0.00016438,2]
[426817350,1782886244000,-869.85344613,0.00016438,2]
[426817347,1782886244000,-869.85344613,0.00016438,2]
[426817349,1782886244000,-869.85344613,0.00016438,2]
[426817348,1782886244000,-869.85344613,0.00016438,2]
[426817345,1782886244000,-869.85344613,0.00016438,2]
[426817352,1782886244000,-869.85344613,0.00016438,2]
[426817363,1782886244000,-304.85,0.00016645,2]
[426817351,1782886244000,-869.85344613,0.00016438,2]
[426817369,1782886244000,-10067.38034176,0.00016822,2]
[426817365,1782886244000,-324.34524977,0.00016714,2]
[426817362,1782886244000,-472.26,0.00016645,2]
[426817357,1782886244000,-9034.0,0.00016477,2]
[426817368,1782886244000,-174.257321,0.00016714,2]
[426817358,1782886244000,-1000.0,0.000165,2]
[426817355,1782886244000,-171.0,0.00016438,2]
[426817354,1782886244000,-869.85344613,0.00016438,2]
[426817353,1782886244000,-869.85344613,0.00016438,2]
[426817356,1782886244000,-172.60020592,0.00016438,2]
[426817436,1782886245000,-152.0,0.0001806,6]
[426817431,1782886245000,-1537.298697,0.00018,2]
[426817432,1782886245000,-1537.298697,0.00018,2]
[426817429,1782886245000,-45235.8109721,0.00018,2]
[426817433,1782886245000,-1537.298697,0.00018,2]
[426817423,1782886245000,-6089.0,0.00017999,2]
[426817426,1782886245000,-506.87208765,0.00017999,2]
[426817427,1782886245000,-500.0,0.00017999,2]
[426817430,1782886245000,-1537.298697,0.00018,2]
[426817425,1782886245000,-502.88375873,0.00017999,2]
[426817438,1782886245000,-10105.79927632,0.000181,2]
[426817428,1782886245000,-300.0,0.00018,2]
[426817437,1782886245000,-1784.5,0.00018082,2]
[426817457,1782886245000,-151.0,0.00018151,2]
[426817441,1782886245000,-573.97,0.0001815,2]
[426817443,1782886245000,-151.0,0.0001815,2]
[426817444,1782886245000,-151.0,0.0001815,2]
[426817446,1782886245000,-152.39,0.0001815,2]
[426817442,1782886245000,-151.41,0.0001815,2]
[426817439,1782886245000,-1544.80215348,0.000181,2]
[426817445,1782886245000,-573.24,0.0001815,2]
[426817447,1782886245000,-573.9,0.0001815,2]
[426817448,1782886245000,-486.61,0.0001815,2]
[426817450,1782886245000,-151.71,0.0001815,2]
[426817456,1782886245000,-482.39,0.00018151,2]
[426817434,1782886245000,-151.0,0.00018,2]
[426817440,1782886245000,-5575.20036299,0.000181,2]
[426817435,1782886245000,-151.0,0.00018,2]
[426817396,1782886245000,-248.81,0.00017332,2]
[426817414,1782886245000,-189.240644,0.00017915,2]
[426817460,1782886245000,-573.9,0.00018151,2]
[426817398,1782886245000,-389.58518776,0.00017542,2]
[426817407,1782886245000,-1244.77633916,0.0001789,2]
[426817395,1782886245000,-248.81,0.00017332,2]
[426817406,1782886245000,-10067.38034168,0.00017808,2]
[426817408,1782886245000,-2675.54351454,0.000179,2]
[426817397,1782886245000,-457.90611043,0.00017396,2]
[426817400,1782886245000,-1500.0,0.00017689,2]
[426817403,1782886245000,-600.0,0.00017736,2]
[426817402,1782886245000,-2171.45,0.00017728,2]
[426817404,1782886245000,-7728.7111701,0.00017748,2]
[426817399,1782886245000,-152.0,0.00017556,5]
[426817405,1782886245000,-274.790489,0.00017787,2]
[426817401,1782886245000,-796.46714401,0.000177,2]
[426817409,1782886245000,-1537.298697,0.000179,2]
[426817413,1782886245000,-1758.00046067,0.000179,2]
[426817420,1782886245000,-3566.0,0.00017999,2]
[426817412,1782886245000,-1537.298697,0.000179,2]
[426817418,1782886245000,-151.0,0.0001799,2]
[426817421,1782886245000,-1362.0,0.00017999,2]
[426817411,1782886245000,-1537.298697,0.000179,2]
[426817416,1782886245000,-213.088554,0.00017989,2]
[426817415,1782886245000,-298.0,0.00017945,2]
[426817417,1782886245000,-151.0,0.0001799,2]
[426817410,1782886245000,-1537.298697,0.000179,2]
[426817419,1782886245000,-150.0,0.00017999,2]
[426817422,1782886245000,-1231.0,0.00017999,2]
[426817424,1782886245000,-3651.0,0.00017999,2]
[426817452,1782886245000,-151.0,0.00018151,2]
[426817455,1782886245000,-482.56,0.00018151,2]
[426817451,1782886245000,-151.47,0.00018151,2]
[426817487,1782886245000,-10105.79927632,0.000185,2]
[426817495,1782886245000,-500.0,0.00018699,2]
[426817491,1782886245000,-2337.0,0.00018635,2]
[426817486,1782886245000,-1103.0,0.000185,5]
[426817494,1782886245000,-3197.8188,0.00018656,2]
[426817492,1782886245000,-1693.0,0.00018656,5]
[426817490,1782886245000,-152.0,0.00018563,7]
[426817497,1782886245000,-1544.80215348,0.000187,2]
[426817493,1782886245000,-2363.44465373,0.00018656,2]
[426817496,1782886245000,-10105.79927632,0.000187,2]
[426817498,1782886245000,-5575.20036299,0.000187,2]
[426817499,1782886245000,-1027.02437262,0.00018719,5]
[426817489,1782886245000,-5575.20036299,0.000185,2]
[426817502,1782886245000,-3241.17,0.0001872,2]
[426817500,1782886245000,-2337.0,0.0001872,2]
[426817503,1782886245000,-1265.84,0.0001872,2]
[426817506,1782886245000,-195.28478388,0.000188,2]
[426817508,1782886245000,-397.0,0.00018808,2]
[426817504,1782886245000,-1500.0,0.00018785,2]
[426817507,1782886245000,-375.16197297,0.000188,2]
[426817449,1782886245000,-573.9,0.0001815,2]
[426817509,1782886245000,-734.83987837,0.0001889,2]
[426817513,1782886245000,-211.21,0.00018899,2]
[426817511,1782886245000,-500.0,0.00018899,2]
[426817510,1782886245000,-500.0,0.00018899,2]
[426817512,1782886245000,-500.0,0.00018899,2]
[426817501,1782886245000,-160.0,0.0001872,2]
[426817488,1782886245000,-1544.80215348,0.000185,2]
[426817505,1782886245000,-10067.38034168,0.00018795,2]
[426817483,1782886245000,-1537.29869221,0.00018356,2]
[426817481,1782886245000,-1537.298697,0.00018356,2]
[426817458,1782886245000,-573.9,0.00018151,2]
[426817459,1782886245000,-573.91,0.00018151,2]
[426817453,1782886245000,-482.63,0.00018151,2]
[426817461,1782886245000,-574.18,0.00018151,2]
[426817463,1782886245000,-644.72,0.00018151,2]
[426817462,1782886245000,-187.59,0.00018151,2]
[426817470,1782886245000,-151.0,0.00018236,2]
[426817471,1782886245000,-10344.6565,0.00018236,2]
[426817467,1782886245000,-1579.90584337,0.00018156,2]
[426817469,1782886245000,-151.0,0.00018236,2]
[426817472,1782886245000,-1500.0,0.00018237,2]
[426817473,1782886245000,-1537.298697,0.00018287,2]
[426817454,1782886245000,-151.0,0.00018151,2]
[426817464,1782886245000,-644.22,0.00018151,2]
[426817466,1782886245000,-296.84,0.00018154,2]
[426817480,1782886245000,-1537.298697,0.00018356,2]
[426817482,1782886245000,-1537.298697,0.00018356,2]
[426817478,1782886245000,-1544.80215348,0.000183,2]
[426817479,1782886245000,-5575.20036299,0.000183,2]
[426817477,1782886245000,-10105.79927632,0.000183,2]
[426817484,1782886245000,-76843.59,0.00018356,2]
[426817474,1782886245000,-1537.298697,0.00018287,2]
[426817485,1782886245000,-269.0,0.0001841,2]
[426817475,1782886245000,-1537.298697,0.00018287,2]
[426817465,1782886245000,-248.76,0.00018154,2]
[426817468,1782886245000,-13037.41196606,0.00018187,2]
[426817476,1782886245000,-1537.298697,0.00018287,2]
[426817540,1782886246000,-250.0,0.00019178,2]
[426817542,1782886246000,-357.214998,0.00019178,2]
[426817543,1782886246000,-357.214998,0.00019178,2]
[426817538,1782886246000,-250.0,0.00019178,2]
[426817539,1782886246000,-250.0,0.00019178,2]
[426817544,1782886246000,-357.214998,0.00019178,2]
[426817547,1782886246000,-357.214998,0.00019178,2]
[426817546,1782886246000,-357.214998,0.00019178,2]
[426817545,1782886246000,-357.214998,0.00019178,2]
[426817554,1782886246000,-357.214998,0.00019178,2]
[426817551,1782886246000,-357.214998,0.00019178,2]
[426817549,1782886246000,-357.214998,0.00019178,2]
[426817548,1782886246000,-357.214998,0.00019178,2]
[426817553,1782886246000,-357.214998,0.00019178,2]
[426817550,1782886246000,-357.214998,0.00019178,2]
[426817555,1782886246000,-357.214998,0.00019178,2]
[426817557,1782886246000,-357.214998,0.00019178,2]
[426817560,1782886246000,-357.214998,0.00019178,2]
[426817562,1782886246000,-20533.98,0.00019178,2]
[426817541,1782886246000,-270.37119352,0.00019178,2]
[426817552,1782886246000,-357.214998,0.00019178,2]
[426817535,1782886246000,-215.45454545,0.0001911,2]
[426817522,1782886246000,-185.33,0.00018972,2]
[426817537,1782886246000,-3000.0,0.00019178,2]
[426817558,1782886246000,-357.214998,0.00019178,2]
[426817514,1782886246000,-1808.0,0.000189,5]
[426817518,1782886246000,-5575.20036299,0.000189,2]
[426817515,1782886246000,-1207654.18308521,0.000189,2]
[426817517,1782886246000,-1544.80215348,0.000189,2]
[426817519,1782886246000,-2337.0,0.00018955,2]
[426817521,1782886246000,-184.83,0.00018972,2]
[426817520,1782886246000,-573.9,0.00018972,2]
[426817516,1782886246000,-10105.79927632,0.000189,2]
[426817525,1782886246000,-248.76,0.00018975,2]
[426817524,1782886246000,-245.67,0.00018973,2]
[426817527,1782886246000,-248.81,0.00018976,2]
[426817532,1782886246000,-10105.79927632,0.000191,2]
[426817526,1782886246000,-248.76,0.00018975,2]
[426817531,1782886246000,-152.0,0.00019067,8]
[426817528,1782886246000,-5260.11678425,0.00019,2]
[426817529,1782886246000,-160.0,0.00019,2]
[426817523,1782886246000,-151.0,0.00018972,2]
[426817530,1782886246000,-13037.41196605,0.00019022,2]
[426817534,1782886246000,-5575.20036299,0.000191,2]
[426817533,1782886246000,-1544.80215348,0.000191,2]
[426817536,1782886246000,-1758.00046062,0.00019157,2]
[426817559,1782886246000,-357.214998,0.00019178,2]
[426817577,1782886246000,-1544.80215348,0.000192,2]
[426817566,1782886246000,-151.0,0.00019178,2]
[426817585,1782886246000,-5575.20036299,0.000194,2]
[426817587,1782886246000,-603.0,0.00019452,2]
[426817589,1782886246000,-10105.79927632,0.000196,2]
[426817584,1782886246000,-1544.80215348,0.000194,2]
[426817592,1782886246000,-497.0,0.00019671,2]
[426817594,1782886246000,-10067.38034168,0.00019781,2]
[426817595,1782886246000,-151.0,0.00019792,2]
[426817596,1782886246000,-151.0,0.00019792,2]
[426817601,1782886246000,-643.55,0.00019794,2]
[426817583,1782886246000,-10105.79927632,0.000194,2]
[426817597,1782886246000,-151.0,0.00019792,2]
[426817599,1782886246000,-151.0,0.00019794,2]
[426817600,1782886246000,-305.68,0.00019794,2]
[426817593,1782886246000,-160.0,0.0001968,2]
[426817602,1782886246000,-482.64,0.00019794,2]
[426817603,1782886246000,-644.72,0.00019794,2]
[426817605,1782886246000,-248.77,0.00019798,2]
[426817604,1782886246000,-248.76,0.00019797,2]
[426817606,1782886246000,-10105.79927632,0.000198,2]
[426817607,1782886246000,-1544.80215348,0.000198,2]
[426817598,1782886246000,-151.0,0.00019792,2]
[426817588,1782886246000,-152.0,0.00019571,9]
[426817564,1782886246000,-153.934412,0.00019178,2]
[426817586,1782886246000,-563.0,0.00019452,2]
[426817563,1782886246000,-151.0,0.00019178,2]
[426817565,1782886246000,-151.0,0.00019178,2]
[426817556,1782886246000,-357.214998,0.00019178,2]
[426817561,1782886246000,-357.215007,0.00019178,2]
[426817567,1782886246000,-151.0,0.00019178,2]
[426817569,1782886246000,-151.0,0.00019178,2]
[426817570,1782886246000,-151.0,0.00019178,2]
[426817576,1782886246000,-10105.79927632,0.000192,2]
[426817573,1782886246000,-151.0,0.00019178,2]
[426817572,1782886246000,-151.0,0.00019178,2]
[426817608,1782886246000,-4618.04254568,0.000198,2]
[426817575,1782886246000,-301.598023,0.00019178,2]
[426817578,1782886246000,-5575.20036299,0.000192,2]
[426817574,1782886246000,-151.0,0.00019178,2]
[426817568,1782886246000,-151.0,0.00019178,2]
[426817571,1782886246000,-151.0,0.00019178,2]
[426817580,1782886246000,-193.87,0.00019299,2]
[426817579,1782886246000,-2337.0,0.00019275,2]
[426817590,1782886246000,-1544.80215348,0.000196,2]
[426817591,1782886246000,-5575.20036299,0.000196,2]
[426817581,1782886246000,-1500.0,0.00019333,2]
[426817582,1782886246000,-500.0,0.00019392,2]
[426817610,1782886247000,-569.99162531,0.000198,2]
[426817609,1782886247000,-387.166192,0.000198,2]
[426817611,1782886247000,-1791.32837469,0.000198,2]
[426817612,1782886247000,-2747.47502491,0.000198,2]
[426817614,1782886332000,195.77,0.00029232,30]
[426817618,1782886971000,155.0,0.00028511,30]
[426817619,1782886973000,155.0,0.00029511,30]
[426817622,1782887187000,214.0,0.00028511,30]
[426817623,1782887188000,214.0,0.00029511,30]
[426817627,1782887340000,2000.0,0.00030131,120]
[426817626,1782887340000,2000.0,0.00030134,30]
[426817628,1782887341000,2000.0,0.0002849,60]
[426817629,1782887351000,177.72,0.00030136,30]
[426817630,1782887360000,99650.91225656,0.0003013,120]
[426817646,1782887432000,-151.0,0.0001452,2]
[426817643,1782887432000,-153.0,0.0001452,2]
[426817650,1782887432000,-152.0,0.0001502,2]
[426817648,1782887432000,-151.0,0.00014794,2]
[426817644,1782887432000,-153.0,0.0001452,2]
[426817645,1782887432000,-152.0,0.0001452,2]
[426817647,1782887432000,-151.0,0.00014794,2]
[426817636,1782887432000,-160.77850876,0.00013696,2]
[426817641,1782887432000,-160.0,0.000143,2]
[426817639,1782887432000,-170.068107,0.000142,2]
[426817640,1782887432000,-152.0,0.00014275,2]
[426817638,1782887432000,-794.26,0.00014,2]
[426817635,1782887432000,-2337.0,0.0001366,2]
[426817642,1782887432000,-151.0,0.0001452,2]
[426817649,1782887432000,-151.0,0.00014794,2]
[426817637,1782887432000,-150.0,0.00013796,2]
[426817652,1782887432000,-151.0,0.0001502,2]
[426817665,1782887432000,-89.95706724,0.0001512,2]
[426817651,1782887432000,-150.0,0.0001502,2]
[426817666,1782887432000,-817.04293276,0.0001512,2]
[426817663,1782887432000,-151.0,0.0001512,2]
[426817662,1782887432000,-151.0,0.00015044,2]
[426817661,1782887432000,-150.0,0.00015026,2]
[426817659,1782887432000,-151.0,0.0001502,2]
[426817664,1782887432000,-151.0,0.0001512,2]
[426817658,1782887432000,-151.0,0.0001502,2]
[426817660,1782887432000,-150.0,0.00015021,2]
[426817653,1782887432000,-11787.33,0.0001502,2]
[426817654,1782887432000,-176.46,0.0001502,2]
[426817667,1782887432000,-57.36054922,0.0001512,2]
[426817656,1782887432000,-3206.49490286,0.0001502,2]
[426817657,1782887432000,-627.16992453,0.0001502,2]
[426817655,1782887432000,-6166.32517261,0.0001502,2]
[426817690,1782887438000,-152.0,0.0001512,2]
[426817678,1782887438000,-822.63945078,0.0001512,2]
[426817681,1782887438000,-152.0,0.0001512,2]
[426817679,1782887438000,-151.0,0.0001512,2]
[426817680,1782887438000,-152.0,0.0001512,2]
[426817683,1782887438000,-151.0,0.0001512,2]
[426817686,1782887438000,-153.0,0.0001512,2]
[426817684,1782887438000,-150.0,0.0001512,2]
[426817682,1782887438000,-153.0,0.0001512,2]
[426817685,1782887438000,-151.0,0.0001512,2]
[426817691,1782887438000,-150.0,0.0001512,2]
[426817689,1782887438000,-150.0,0.0001512,2]
[426817696,1782887438000,-2337.0,0.00015395,2]
[426817692,1782887438000,-151.0,0.0001512,2]
[426817695,1782887438000,-151.0,0.0001512,2]
[426817697,1782887438000,-3932.02450392,0.00015469,2]
[426817693,1782887438000,-150.0,0.0001512,2]
[426817687,1782887438000,-151.0,0.0001512,2]
[426817688,1782887438000,-153.0,0.0001512,2]
[426817694,1782887438000,-150.0,0.0001512,2]
[426817906,1782887440000,-200.0,0.00016471,2]
[426817908,1782887440000,-184.38,0.00016606,2]
[426817904,1782887440000,-224.2,0.00016438,2]
[426817902,1782887440000,-1500.0,0.00016398,2]
[426817898,1782887440000,-153.2943977,0.00015809,2]
[426817900,1782887440000,-153.2943977,0.00015809,2]
[426817896,1782887440000,-153.2943977,0.00015809,2]
[426817891,1782887440000,-153.2943977,0.00015809,2]
[426817881,1782887440000,-3566.0,0.00015479,2]
[426817887,1782887440000,-503.99971624,0.00015753,2]
[426817885,1782887440000,-250.0,0.0001553,2]
[426817879,1782887440000,-1231.0,0.00015479,2]
[426817912,1782887440000,-175.59,0.00016775,2]
[426817883,1782887440000,-6089.0,0.00015479,2]
[426817876,1782887440000,-1362.0,0.00015479,2]
[426817877,1782887440000,-197.80281625,0.00015479,2]
[426817875,1782887440000,-500.0,0.00015479,2]
[426817873,1782887440000,-4364.36263711,0.00015469,2]
[426817889,1782887440000,-5404.3060219,0.00015809,2]
[426817913,1782887440000,-2500.0,0.00016794,2]
[426817893,1782887440000,-153.2943977,0.00015809,2]
[426817914,1782887440000,-414.4,0.00016932,2]
[426817910,1782887440000,-171.67,0.00016712,2]
[426817934,1782887440000,-891.57,0.00018479,2]
[426817930,1782887440000,-3052.24990343,0.000184,2]
[426817931,1782887440000,-354.91034344,0.000184,2]
[426817932,1782887440000,-224.2,0.0001841,2]
[426817928,1782887440000,-2251.7941757,0.000182,2]
[426817933,1782887440000,-1359.171,0.00018479,2]
[426817929,1782887440000,-3052.24990343,0.000183,2]
[426817926,1782887440000,-354.91034344,0.000181,2]
[426817923,1782887440000,-552.11372918,0.00017989,2]
[426817916,1782887440000,-1189.71227388,0.00016984,2]
[426817925,1782887440000,-3052.24990343,0.000181,2]
[426817915,1782887440000,-1500.0,0.00016946,2]
[426817918,1782887440000,-150.0,0.00017332,2]
[426817917,1782887440000,-150.0,0.00017255,2]
[426817927,1782887440000,-354.91034344,0.000182,2]
[426817920,1782887440000,-509.08248517,0.00017863,2]
[426817921,1782887440000,-150.0,0.00017945,2]
[426817924,1782887440000,-1500.0,0.00018042,2]
[426817919,1782887440000,-1500.0,0.00017494,2]
[426817936,1782887441000,-6089.0,0.00018479,2]
[426817944,1782887441000,-900.7176703,0.00018734,2]
[426817935,1782887441000,-3566.0,0.00018479,2]
[426817938,1782887441000,-1500.0,0.0001859,2]
[426817939,1782887441000,-3052.24990343,0.000186,2]
[426817941,1782887441000,-2337.0,0.0001872,2]
[426817940,1782887441000,-354.91034344,0.000186,2]
[426817942,1782887441000,-2337.0,0.0001872,2]
[426817937,1782887441000,-178.84965581,0.0001848,2]
[426817946,1782887441000,-354.91034344,0.000188,2]
[426817945,1782887441000,-3052.24990343,0.000188,2]
[426817943,1782887441000,-160.0,0.0001872,2]
[426817953,1782887441000,281.49602122,0.000219,30]
[426817952,1782887441000,-255.96544994,0.00018915,2]
[426817950,1782887441000,-1447.22280805,0.00018915,2]
[426817949,1782887441000,-371.00048105,0.00018915,2]
[426817947,1782887441000,-199.0,0.00018808,2]
[426817948,1782887441000,-6762.00177797,0.00018908,2]
[426817951,1782887441000,-2249.9982378,0.00018915,2]
[426817961,1782887443000,-451.02,0.00018915,2]
[426817965,1782887444000,-5743.82853158,0.00018915,2]
[426817970,1782887446000,-2464.84689602,0.00018915,2]
[426817969,1782887446000,-98.0,0.00018915,2]
[426817968,1782887446000,-152.0,0.0001512,2]
[426817971,1782887447000,-1304.84205751,0.00018915,2]
[426817973,1782887447000,-443.02091047,0.00018915,2]
[426817972,1782887447000,-1482.30161521,0.00018915,2]
[426817976,1782887483000,159.78,0.0002863,30]
[426817977,1782887484000,159.78,0.00029132,30]
[426817978,1782887486000,159.78,0.00029634,30]
[426817979,1782887487000,159.83,0.00030136,30]
[426817980,1782887500000,177.73,0.00030136,30]
[426817982,1782887767000,959.95,0.00030137,30]
[426817983,1782887782000,1439.92,0.00030137,30]
[426817984,1782887791000,719.96,0.00030137,30]
[426817985,1782887814000,359.98,0.00030137,30]
[426817986,1782887823000,179.99,0.00030137,30]
[426817987,1782888055000,155.0,0.00028511,30]
[426817988,1782888056000,155.0,0.00029511,30]
[426817989,1782888058000,614.2,0.00030137,30]
[426817991,1782888276000,193.0,0.00028511,30]
[426817992,1782888277000,193.0,0.00029511,30]
[426817993,1782888364000,3085.4,0.00030137,30]
[426817996,1782888540000,2000.0,0.00030136,30]
[426817998,1782888541000,2000.0,0.00028489,60]
[426817997,1782888541000,2000.0,0.0003013,120]
[426817999,1782888565000,50124.0,0.00030136,30]
[426818031,1782888631000,-151.0,0.00015708,2]
[426818020,1782888631000,-151.0,0.00015708,2]
[426818030,1782888631000,-153.0,0.00015708,2]
[426818029,1782888631000,-151.0,0.00015708,2]
[426818028,1782888631000,-150.0,0.00015708,2]
[426818027,1782888631000,-151.0,0.00015708,2]
[426818025,1782888631000,-152.0,0.00015708,2]
[426818026,1782888631000,-151.0,0.00015708,2]
[426818024,1782888631000,-151.0,0.00015708,2]
[426818023,1782888631000,-151.0,0.00015708,2]
[426818021,1782888631000,-150.0,0.00015708,2]
[426818022,1782888631000,-151.0,0.00015708,2]
[426818018,1782888631000,-150.0,0.00015708,2]
[426818010,1782888631000,-62.536577,0.00015708,2]
[426818019,1782888631000,-151.0,0.00015708,2]
[426818016,1782888631000,-150.0,0.00015708,2]
[426818014,1782888631000,-153.0,0.00015708,2]
[426818015,1782888631000,-152.0,0.00015708,2]
[426818013,1782888631000,-151.0,0.00015708,2]
[426818011,1782888631000,-152.0,0.00015708,2]
[426818012,1782888631000,-151.0,0.00015708,2]
[426818032,1782888631000,-151.0,0.00015708,2]
[426818008,1782888631000,-152.0,0.00015708,2]
[426818009,1782888631000,-87.463423,0.00015708,2]
[426818007,1782888631000,-66.077,0.00015708,2]
[426818004,1782888631000,-366.077,0.0001569,2]
[426818005,1782888631000,-83.923,0.00015708,2]
[426818017,1782888631000,-152.0,0.00015708,2]
[426818036,1782888631000,-151.0,0.00015708,2]
[426818034,1782888631000,-153.0,0.00015708,2]
[426818037,1782888631000,-153.0,0.00015708,2]
[426818076,1782888631000,-151.0,0.00015708,2]
[426818073,1782888631000,-150.0,0.00015708,2]
[426818072,1782888631000,-152.0,0.00015708,2]
[426818070,1782888631000,-151.0,0.00015708,2]
[426818067,1782888631000,-150.0,0.00015708,2]
[426818061,1782888631000,-96.58676706,0.00015708,2]
[426818059,1782888631000,-151.0,0.00015708,2]
[426818056,1782888631000,-107.77425155,0.00015708,2]
[426818035,1782888631000,-151.0,0.00015708,2]
[426818054,1782888631000,-45.22574845,0.00015708,2]
[426818063,1782888631000,-54.41323294,0.00015708,2]
[426818065,1782888631000,-151.0,0.00015708,2]
[426818052,1782888631000,-153.0,0.00015708,2]
[426818057,1782888631000,-150.0,0.00015708,2]
[426818049,1782888631000,-151.0,0.00015708,2]
[426818050,1782888631000,-150.0,0.00015708,2]
[426818039,1782888631000,-151.0,0.00015708,2]
[426818038,1782888631000,-150.0,0.00015708,2]
[426818044,1782888631000,-107.83167855,0.00015708,2]
[426818041,1782888631000,-151.0,0.00015708,2]
[426818040,1782888631000,-151.0,0.00015708,2]
[426818033,1782888631000,-151.0,0.00015708,2]
[426818043,1782888631000,-152.0,0.00015708,2]
[426818045,1782888631000,-43.16832145,0.00015708,2]
[426818047,1782888631000,-151.0,0.00015708,2]
[426818046,1782888631000,-150.0,0.00015708,2]
[426818048,1782888631000,-151.0,0.00015708,2]
[426818042,1782888631000,-151.0,0.00015708,2]
[426818097,1782888632000,-118.30148089,0.00015708,2]
[426818091,1782888632000,-151.0,0.00015708,2]
[426818094,1782888632000,-150.0,0.00015708,2]
[426818087,1782888632000,-151.0,0.00015708,2]
[426818083,1782888632000,-151.0,0.00015708,2]
[426818085,1782888632000,-151.0,0.00015708,2]
[426818079,1782888632000,-150.0,0.00015708,2]
[426818081,1782888632000,-152.0,0.00015708,2]
[426818078,1782888632000,-151.0,0.00015708,2]